[Event "Susha Chess Blitz Women 2022"]
[Site "Shusha"]
[Date "2022.09.24"]
[Round "9"]
[White "Fataliyeva, Ulviyya"]
[Black "Balajayeva, Khanim"]
[Result "1/2-1/2"]
[ECO "A06"]
[WhiteElo "2408"]
[BlackElo "2379"]
[Annotator "TA"]
[PlyCount "116"]
[EventDate "2022.09.24"]
[EventType "tourn"]
[EventCountry "AZE"]
[SourceTitle "playchess.com"]
[Source "ChessBase"]
[SourceQuality "1"]
[TimeControl "180+2"]

{[%evp 13,116,0,0,-6,-7,-8,-8,-20,-16,-39,-35,-64,-28,-72,-65,-62,-54,-50,-18,-35,-45,-29,-9,0,35,34,28,29,23,18,21,37,75,63,263,262,514,410,399,392,428,421,443,424,439,422,462,453,454,454,494,495,514,496,607,562,565,557,637,600,2437,714,674,530,515,525,525,461,1537,634,29970,6604,12850,5492,3000,2965,29976,29977,29972,29966,29978,29973,29962,29959,12845,5057,11225,1227,1118,1099,1179,1107,5065,652,652,602,589,444,512,444,435,334,408,0,299]} 1. Nf3 {[%emt 0:00:01]} d5 {[%emt 0:00:01]} 2. g3 {[%emt 0:00:01]} Nf6 {[%emt 0:00:01]} 3. Bg2 {[%emt 0:00:00]} c6 {[%emt 0:00:01]} 4. O-O {[%emt 0:00:01]} Bf5 {[%emt 0:00:01]} 5. d4 {[%emt 0:00:05]} e6 {[%emt 0:00:04]} 6. Nbd2 {[%emt 0:00:01]} h6 {[%emt 0:00:01]} 7. c4 {[%emt 0:00:02]} Be7 {[%emt 0:00:05]} 8. Ne5 {[%emt 0:00:04] D11: Slav Defence: 3 Nf3 sidelines and 3...Nf6 4 e3 Bg4.} O-O {[%emt 0:00:09]} 9. b3 {[%emt 0:00:20]} a5 {[%emt 0:00:02][%cal Ba7a5,Ba5a4][%mdl 32]} 10. Bb2 {[%emt 0:00:03]} a4 {[%emt 0:00:04]} 11. Rc1 {[%emt 0:00:01]} Nbd7 {[%emt 0:00:28] [#]} 12. h3 $146 {[%emt 0:00:23]} ({Predecessor:} 12. Bc3 axb3 13. axb3 Ra2 14. b4 Qa8 15. Re1 Rd8 16. cxd5 cxd5 17. Qb3 Qa3 18. b5 Nxe5 19. dxe5 {0-1 (45) Gunina,V (2506)-Najer,E (2626) Moscow 2013}) 12... Bh7 {[%emt 0:00:03]} 13. f4 {[%emt 0:00:01]} axb3 {[%emt 0:00:26]} 14. axb3 {[%emt 0:00:02]} Ra2 {[%emt 0:00:01]} 15. Bc3 {[%emt 0:00:03]} Nxe5 {[%emt 0:00:23]} 16. fxe5 {[%emt 0:00:20]} Nd7 {[%emt 0:00:00]} 17. e4 {[%emt 0:00:03]} dxe4 {[%emt 0:00:14]} 18. Bxe4 {[%emt 0:00:13]} Bg5 {[%emt 0:00:01]} 19. Bxh7+ {[%emt 0:00:03]} (19. Rc2 {keeps more tension.} Rxc2 20. Qxc2 Bxe4 21. Nxe4 c5 22. dxc5 Nxc5 23. Nd6) 19... Kxh7 {[%emt 0:00:01]} 20. Rc2 {[%emt 0:00:10]} Rxc2 21. Qxc2+ {[%emt 0:00:01]} Kg8 {[%emt 0:00:24]} 22. Ne4 {[%emt 0:00:01]} Nb6 {[%emt 0:00:08]} 23. Qf2 {[%emt 0:00:12] White has more active pieces.} Be7 $2 {[%emt 0:00:05]} (23... Nd7 $14) 24. Ba5 $18 {[%emt 0:00:09]} c5 $2 {[%emt 0:00:40]} (24... f6 25. exf6 Bxf6) 25. Nd6 {[%emt 0:00:28]} Bxd6 {[%emt 0:00:17]} 26. exd6 {[%emt 0:00:01]} Qxd6 {[%emt 0:00:01]} 27. dxc5 {[%emt 0:00:01]} Qd3 {[%emt 0:00:01]} 28. cxb6 {[%emt 0:00:08]} ({Not} 28. Bxb6 Qxb3 29. Qf3 Qxf3 30. Rxf3 f6 $18) 28... Qxb3 {[%emt 0:00:01]} 29. c5 {[%emt 0:00:03]} e5 {[%emt 0:00:02]} 30. Bd2 {[%emt 0:00:07]} Rd8 {[%emt 0:00:04]} 31. Be3 {[%emt 0:00:08]} Rd3 {[%emt 0:00:02]} 32. Re1 {[%emt 0:00:02]} f5 {[%emt 0:00:05]} 33. Kg2 {[%emt 0:00:06]} Qd5+ {[%emt 0:00:02]} 34. Qf3 {[%emt 0:00:02] [#] Threatens to win with Qxd5+.} e4 {[%emt 0:00:00]} 35. Qf4 {[%emt 0:00:02]} Rb3 {[%emt 0:00:05]} 36. Re2 {[%emt 0:00:03]} Qd3 {[%emt 0:00:01]} 37. Qf2 {[%emt 0:00:08]} (37. Rd2 $142 Qxd2+ 38. Bxd2) 37... Qd5 {[%emt 0:00:05]} 38. Rd2 {[%emt 0:00:02]} Rd3 {[%emt 0:00:01]} 39. Rxd3 {[%emt 0:00:03]} exd3+ {[%emt 0:00:01]} 40. Kh2 {[%emt 0:00:01]} g6 {[%emt 0:00:03]} (40... h5 $142 41. Bd2 Kh7) 41. Bxh6 {[%emt 0:00:03]} (41. Qg2 $142 Qe6 42. Bxh6) 41... Qc4 {[%emt 0:00:03]} 42. Bd2 {[%emt 0:00:03]} (42. Qb2 $142 Kf7 43. Qg7+ Ke8 44. Qe5+ Kf7 45. Qc7+ Ke8 46. Qc8+ Ke7 47. Qxb7+ Ke8 48. Qc6+ Ke7 49. b7) 42... Kf7 {[%emt 0:00:01]} 43. Qe3 {[%emt 0:00:02] White threatens Qf4 and mate.} Qc2 {[%emt 0:00:01]} 44. h4 {[%emt 0:00:04]} Qb1 {[%emt 0:00:05]} 45. h5 {[%emt 0:00:08]} gxh5 {[%emt 0:00:01]} 46. Qg5 {[%emt 0:00:02]} Qf1 {[%emt 0:00:01]} 47. Qxh5+ Ke6 48. Qh6+ {[%emt 0:00:12]} Kd5 {[%emt 0:00:01]} 49. Qe3 {[%emt 0:00:07] Black must now prevent Qg1.} Kc6 {[%emt 0:00:06]} 50. Qf4 {[%emt 0:00:12]} Qe2+ {[%emt 0:00:01]} 51. Kg1 {[%emt 0:00:01]} Qd1+ {[%emt 0:00:00] [#]} 52. Kg2 $1 {[%emt 0:00:01] Intending Qd6+ and mate.} Qe2+ {[%emt 0:00:01]} 53. Kh3 {[%emt 0:00:02]} Qh5+ {[%emt 0:00:02]} 54. Qh4 {[%emt 0:00:01]} Qe2 {[%emt 0:00:00]} 55. Qf6+ {[%emt 0:00:02]} Kxc5 {[%emt 0:00:01]} 56. Qc3+ {[%emt 0:00:03]} Kxb6 {[%emt 0:00:00]} 57. Qd4+ {[%emt 0:00:04]} Kc6 {[%emt 0:00:01]} 58. Qc3+ {[%emt 0:00:02]} Kb6 $1 {[%mdl 32768] Weighted Error Value: White=0.15 (very precise) /Black=0.38. An unexpected result.} 1/2-1/2

[Event "Susha Chess Blitz Women 2022"]
[Site "Shusha"]
[Date "2022.09.24"]
[Round "10"]
[White "Efroimski, Marsel"]
[Black "Arabidze, Meri"]
[Result "1-0"]
[ECO "B48"]
[WhiteElo "2462"]
[BlackElo "2422"]
[Annotator "TA"]
[PlyCount "183"]
[EventDate "2022.09.24"]
[EventType "tourn"]
[EventCountry "AZE"]
[SourceTitle "playchess.com"]
[Source "ChessBase"]
[SourceQuality "1"]
[TimeControl "180+2"]

{[%evp 17,183,29,39,44,60,25,138,125,136,108,141,153,229,242,200,92,75,89,154,17,33,-39,47,32,70,53,46,32,118,30,26,22,29,0,0,0,14,0,88,84,80,37,54,12,12,22,123,53,149,17,113,125,170,174,194,191,190,189,6095,6070,2200,218,214,0,218,209,210,210,256,235,520,216,29979,29980,29992,29977,29977,29978,29978,29979,29979,1716,29978,29979,29980,29980,29979,29967,29967,29968,29968,29969,29969,29968,29972,29971,29971,29971,29971,29972,29973,29974,29974,29975,29975,29972,29973,29972,29974,29975,29974,29963,1321,0,29973,29969,29969,29969,6048,1377,29977,29978,29978,446,29972,29973,29973,29975,29975,29976,29976,29975,29980,29978,29979,29978,29978,29978,29979,29978,29978,29979,29979,29979,29981,29981,29982,29983,29983,29984,29984,29985,29985,29986,29987,29988,29990,29988,29988,29989,29989,29990,29992,29993,29993,29994,29995,29996]} 1. e4 {[%emt 0:00:00]} c5 {[%emt 0:00:00]} 2. Nf3 {[%emt 0:00:02]} e6 {[%emt 0:00:01]} 3. d4 {[%emt 0:00:00]} cxd4 {[%emt 0:00:00]} 4. Nxd4 {[%emt 0:00:01]} Nc6 {[%emt 0:00:01]} 5. Nc3 {[%emt 0:00:02]} Qc7 {[%emt 0:00:01]} 6. Be3 {[%emt 0:00:00]} a6 {[%emt 0:00:00]} 7. a3 {[%emt 0:00:01]} Nf6 {[%emt 0:00:10]} 8. f4 {[%emt 0:00:03]} d6 {[%emt 0:00:06]} 9. Qf3 {[%emt 0:00:10]} Be7 {[%emt 0:00:10]} 10. O-O-O {[%emt 0:00:02] B82: Sicilian Scheveningen: 6 f4.} Bd7 {[%emt 0:00:02]} 11. g4 {[%emt 0:00:05][%cal Bg2g4,Bg4g5][%mdl 32] [#] Hoping for g5.} g6 $146 {[%emt 0:00:17]} (11... Nxd4 $11 {keeps the balance.} 12. Rxd4 e5) ({Predecessor:} 11... Nxd4 12. Rxd4 e5 13. Rc4 Bxg4 14. Qxg4 Nxg4 15. Rxc7 Nxe3 16. fxe5 Bg5 17. Kb1 dxe5 18. Rxb7 {0-1 (93) Paravyan,D (2642)-Sochacki,C (2485) Chess.com INT 2021}) 12. g5 $16 {[%emt 0:00:08] White is clearly better.} Nh5 {[%emt 0:00:01]} 13. f5 {[%emt 0:00:04]} Nxd4 {[%emt 0:00:12]} 14. Rxd4 {[%emt 0:00:16]} exf5 {[%emt 0:00:56]} (14... d5 $16) 15. Nd5 $18 {[%emt 0:00:14]} Qd8 {[%emt 0:00:00]} 16. Rc4 {[%emt 0:00:52]} (16. Bh3 $18 {[%cal Re4f5] has better winning chances.} Bxg5 17. exf5) 16... O-O {[%emt 0:00:02]} 17. h4 {[%emt 0:00:23] Strongly threatening exf5.} b5 {[%emt 0:00:14]} (17... Rc8 $142) 18. Bb6 {[%emt 0:00:04] White is much more active. The black rooks are badly placed.} (18. Rc7 $16 Qe8 19. exf5) 18... Qe8 $11 {[%emt 0:00:04]} 19. Rc3 {[%emt 0:00:15]} (19. Rd4 $14) 19... Bd8 {[%emt 0:00:06]} ({Black should try} 19... fxe4 $15 20. Qe3 Bd8 21. Bxd8 Rxd8) 20. Bxd8 $14 {[%emt 0:00:09]} Qxd8 21. exf5 {[%emt 0:00:06]} (21. Be2 $5 {[%cal Rc3c7]}) 21... Bxf5 {[%emt 0:00:09]} 22. Bd3 {[%emt 0:00:02]} Bxd3 {[%emt 0:00:08]} (22... Be6 $1 $14) 23. Rxd3 {[%emt 0:00:05]} (23. Qxd3 $16 Ra7 24. Qe3) 23... f6 $11 {[%emt 0:00:14]} 24. gxf6 {[%emt 0:00:09]} Nxf6 {[%emt 0:00:02]} 25. Nxf6+ {[%emt 0:00:05]} Qxf6 {[%emt 0:00:12]} 26. Qd5+ {[%emt 0:00:00]} Kh8 {[%emt 0:00:04]} 27. h5 {[%emt 0:00:01]} gxh5 {[%emt 0:00:12]} (27... g5 $11) 28. Qxh5 $16 {[%emt 0:00:02][%csl Gh1][%cal Rh5h7]} Ra7 {[%emt 0:00:07]} 29. Qd5 {[%emt 0:00:06]} Raf7 {[%emt 0:00:08]} 30. Rhd1 {[%emt 0:00:04]} Qe5 $1 {[%emt 0:00:06]} 31. Qc6 {[%emt 0:00:04]} a5 {[%emt 0:00:04]} (31... Rf1 $1 $11) 32. Rxd6 {[%emt 0:00:02]} (32. Rd5 $1 $16 {[%cal Rd5e5]} Qf4+ 33. Kb1) 32... b4 {[%emt 0:00:03] [#]} (32... Rf1 $1 $14) 33. R6d5 {[%emt 0:00:03]} (33. a4 $1 $16) 33... Qf4+ {[%emt 0:00:01]} (33... Qc7 $11 {remains equal.} 34. Qxc7 Rxc7) 34. Kb1 {[%emt 0:00:01]} bxa3 {[%emt 0:00:03]} 35. Qc3+ {[%emt 0:00:01]} ({Weaker is} 35. Rxa5 axb2 36. Qc3+ Qf6 37. Qxf6+ (37. Qxb2 Qxb2+ 38. Kxb2 Rc8 $11) 37... Rxf6 $11) 35... Qf6 {[%emt 0:00:01]} 36. Qxa3 {[%emt 0:00:01]} Rb8 {[%emt 0:00:09]} 37. Rd6 {[%emt 0:00:02]} ({But not} 37. Rxa5 Qf3 38. Qd6 Qf4 39. Qxf4 Rxf4) 37... Qe7 {[%emt 0:00:05]} (37... Qe5 38. R6d5 Qf6 39. Rxa5 Qf3) 38. Qc3+ $18 {[%emt 0:00:03]} Kg8 {[%emt 0:00:02]} 39. Qg3+ $2 {[%emt 0:00:02]} (39. Rd7 {White wants to mate with Rg1+.} Qxd7 40. Rxd7 Rxd7 41. Qg3+ Kf7 42. Qxb8) 39... Rg7 {[%emt 0:00:02]} 40. Qc3 {[%emt 0:00:04]} ({Better is} 40. Qd3 $18) 40... a4 $2 {[%emt 0:00:02]} (40... Rf7 $1 $11 {and Black stays safe.}) 41. Qc4+ {[%emt 0:00:01]} Kh8 {[%emt 0:00:01]} 42. Qxa4 {[%emt 0:00:03]} Rbg8 {[%emt 0:00:03]} 43. Qd4 {[%emt 0:00:01]} Qb7 {[%emt 0:00:03]} (43... Qa7 {is a better defense.} 44. c4 Qxd4 45. R1xd4 Rg4 46. Rxg4 Rxg4) 44. Qc3 {[%emt 0:00:05]} (44. b4 $142) 44... Qa7 $2 {[%emt 0:00:02]} (44... Qc7 $18 45. Qd4 Qa7) 45. Rd7 {[%emt 0:00:06]} Qb8 {[%emt 0:00:02]} 46. Rxg7 {[%emt 0:00:03]} Rxg7 {[%emt 0:00:00] KQR-KQR} 47. Rd7 {[%emt 0:00:03][%csl Gd7][%cal Rc3g7]} Qf8 {[%emt 0:00:03]} 48. b4 {[%emt 0:00:05]} h5 {[%emt 0:00:01]} 49. Qd4 {[%emt 0:00:06]} (49. b5 $142 h4 50. Qd4 h3 51. Rd8 Qg8 52. b6 Qxd8 53. Qxd8+ Kh7 54. Qd3+ Kg8 55. Qxh3) 49... Kh7 {[%emt 0:00:04]} 50. Qd3+ {[%emt 0:00:02]} Kg8 {[%emt 0:00:01]} 51. Qd5+ {[%emt 0:00:01]} Rf7 {[%emt 0:00:02]} 52. Qg5+ {[%emt 0:00:01]} Rg7 {[%emt 0:00:02] [#]} 53. Rxg7+ $1 {[%emt 0:00:03]} Qxg7 {[%emt 0:00:01]} 54. Qxh5 {[%emt 0:00:03] KQ-KQ} Qg1+ {[%emt 0:00:01]} 55. Ka2 {[%emt 0:00:02]} Qd4 {[%emt 0:00:04]} 56. Qg6+ {[%emt 0:00:02]} Kh8 {[%emt 0:00:02]} 57. Qe8+ {[%emt 0:00:02]} Kh7 {[%emt 0:00:01]} 58. Qe7+ {[%emt 0:00:01]} Kh8 {[%emt 0:00:01]} 59. Qc5 {[%emt 0:00:04]} Qd2 {[%emt 0:00:02]} 60. Kb3 {[%emt 0:00:01]} Qc1 {[%emt 0:00:02]} 61. Qc3+ {[%emt 0:00:02]} Kg8 {[%emt 0:00:01]} 62. Qc4+ {[%emt 0:00:01]} Kh8 {[%emt 0:00:01]} 63. Qd4+ {[%emt 0:00:01]} Kg8 {[%emt 0:00:01]} 64. Qb2 {[%emt 0:00:01]} Qe3+ {[%emt 0:00:02]} 65. Qc3 {[%emt 0:00:01]} (65. c3 $18 Kf7 66. b5) 65... Qc1 $1 {[%emt 0:00:00]} 66. Kc4 {[%emt 0:00:03]} Qf4+ {[%emt 0:00:02]} 67. Qd4 {[%emt 0:00:01]} Qf1+ {[%emt 0:00:03]} 68. Kc5 {[%emt 0:00:02]} (68. Qd3 $142 Qf2 69. Kb3) 68... Qb1 {[%emt 0:00:05]} 69. c4 {[%emt 0:00:02]} Kh7 {[%emt 0:00:03]} 70. Kd5 {[%emt 0:00:03]} (70. b5 $142 Qf5+ 71. Kb6 Qh3 72. Qd6 Kg8 73. c5 Kh8 74. c6 Qf1 75. c7) 70... Qf5+ {[%emt 0:00:02]} (70... Qxb4 $18 71. c5 Qb3+ 72. Kd6 Qa3) 71. Qe5 {[%emt 0:00:01] White mates.} Qd3+ {[%emt 0:00:01]} 72. Kc5 {[%emt 0:00:02]} Qa3 {[%emt 0:00:02]} 73. Qe4+ {[%emt 0:00:02]} Kg7 {[%emt 0:00:02]} 74. Qe7+ {[%emt 0:00:02]} Kh8 {[%emt 0:00:01]} 75. Kb5 {[%emt 0:00:01]} Qd3 {[%emt 0:00:03]} 76. Qe6 {[%emt 0:00:03]} Kh7 {[%emt 0:00:04]} 77. Kc6 {[%emt 0:00:06]} Qf3+ {[%emt 0:00:04]} 78. Qd5 {[%emt 0:00:01]} Qf6+ {[%emt 0:00:02]} 79. Qd6 {[%emt 0:00:04]} Qc3 {[%emt 0:00:01]} 80. Kb5 {[%emt 0:00:06]} Qe1 {[%emt 0:00:03]} 81. c5 {[%emt 0:00:02][%cal Bc4c5,Bc5c6][%mdl 32]} Qe2+ {[%emt 0:00:01]} 82. Kb6 {[%emt 0:00:01]} Qe8 {[%emt 0:00:03]} 83. c6 {[%emt 0:00:06]} Qe3+ {[%emt 0:00:02]} 84. Kb7 {[%emt 0:00:03]} Qe4 {[%emt 0:00:02]} 85. b5 {[%emt 0:00:02][%cal Bb4b5,Bb5b6,Bb6b7][%mdl 32]} Kh8 {[%emt 0:00:01]} 86. b6 {[%emt 0:00:01]} Qf3 {[%emt 0:00:02]} 87. Kc7 {[%emt 0:00:00]} Qf7+ {[%emt 0:00:02]} 88. Qd7 {[%emt 0:00:02]} Qf4+ {[%emt 0:00:03]} 89. Kc8 {[%emt 0:00:00]} Qa4 {[%emt 0:00:03]} 90. b7 {[%emt 0:00:02]} Qa6 {[%emt 0:00:02]} 91. c7 {[%emt 0:00:03]} Kg8 {[%emt 0:00:01]} 92. Kb8 {[%emt 0:00:01] Weighted Error Value: White=0.43/Black=0.53} 1-0

[Event "Susha Chess Blitz Women 2022"]
[Site "Shusha"]
[Date "2022.09.24"]
[Round "10"]
[White "Zawadzka, Jolanta"]
[Black "Mammadzada, Gunay"]
[Result "1-0"]
[ECO "B52"]
[WhiteElo "2401"]
[BlackElo "2473"]
[Annotator "TA"]
[PlyCount "61"]
[EventDate "2022.09.24"]
[EventType "tourn"]
[EventCountry "AZE"]
[SourceTitle "playchess.com"]
[Source "ChessBase"]
[SourceQuality "1"]
[TimeControl "180+2"]

{[%evp 9,61,16,52,47,49,53,56,36,43,43,85,63,128,100,81,85,129,90,88,83,80,87,83,14,11,12,93,82,1095,1162,1246,1194,29980,833,29989,29990,29991,29991,29991,29987,29987,5410,4998,1691,29984,29985,29985,29986,29986,29987,29992,29992,29996,29997]} 1. e4 {[%emt 0:00:01]} c5 {[%emt 0:00:01]} 2. Nf3 {[%emt 0:00:01]} d6 {[%emt 0:00:00]} 3. Bb5+ {[%emt 0:00:01]} Bd7 {[%emt 0:00:02]} 4. Bxd7+ {[%emt 0:00:02]} Nxd7 {[%emt 0:00:01]} 5. c3 {[%emt 0:00:02][%cal Bc2c3,Bc3d4][%mdl 32] [#]} Ne5 $146 {[%emt 0:00:30]} ({Predecessor:} 5... Ngf6 6. Qe2 e6 7. d4 Be7 8. e5 Nd5 9. c4 Nb4 10. a3 Nc6 11. exd6 Bxd6 12. d5 Nce5 13. Nxe5 Nxe5 14. O-O {1-0 (58) Matlakov,M (2674)-Sarana,A (2675) Chess.com INT 2022}) 6. d4 {[%emt 0:00:51] B52: Sicilian: Moscow Variation with 3...Bd7.} Nxf3+ {[%emt 0:00:03]} 7. Qxf3 {[%emt 0:00:01]} e6 {[%emt 0:00:28]} 8. O-O {[%emt 0:00:02] White is slightly better.} cxd4 {[%emt 0:00:48]} 9. cxd4 {[%emt 0:00:01]} Ne7 {[%emt 0:00:12]} 10. Nc3 {[%emt 0:00:02] White is more active.} Nc6 {[%emt 0:00:01]} ({Better is} 10... Qd7 $14) 11. Qe3 {[%emt 0:00:13]} Be7 {[%emt 0:00:04]} 12. d5 {[%emt 0:00:03]} Ne5 {[%emt 0:00:06]} 13. dxe6 {[%emt 0:00:25]} fxe6 {[%emt 0:00:01]} 14. Qh3 {[%emt 0:00:02]} Qd7 {[%emt 0:00:04]} 15. f4 {[%emt 0:00:02]} Nc6 {[%emt 0:00:14]} 16. f5 {[%emt 0:00:02]} (16. Rd1 $16) 16... exf5 $1 $11 {[%emt 0:00:28]} 17. exf5 {[%emt 0:00:01] Qh5+ is the strong threat.} d5 {[%emt 0:00:06]} (17... O-O $11 {keeps the balance.}) 18. Qh5+ $16 {[%emt 0:00:04]} Kf8 $2 {[%emt 0:00:04][%mdl 8192] This move loses the game for Black.} (18... g6 $16 19. fxg6 Bc5+ 20. Kh1 O-O-O) 19. f6 $18 {[%emt 0:00:05]} Bxf6 {[%emt 0:00:15]} 20. Nxd5 {[%emt 0:00:04]} Qf7 {[%emt 0:00:04] [#]} 21. Nxf6 {[%emt 0:00:19]} (21. Rxf6 $142 $1 {[%mdl 512]} Qxf6 22. Nxf6 gxf6 23. Bh6+ Ke7 24. Re1+ Ne5 25. Bg7 Rhe8 26. Qf5) 21... gxf6 {[%emt 0:00:02]} 22. Bh6+ {[%emt 0:00:02]} Kg8 {[%emt 0:00:07]} 23. Qh4 {[%emt 0:00:11]} f5 {[%emt 0:00:04]} 24. Rf3 {[%emt 0:00:06]} Ne5 {[%emt 0:00:01]} 25. Rg3+ (25. Qg3+ $142 Ng6 26. Raf1 Rf8 27. Bxf8 Qxf8 28. Rxf5 Qe7 29. Qb3+ Kg7 30. Rf7+ Kh6 31. Rxe7) 25... Ng6 26. Qd4 {[%emt 0:00:23]} (26. Rf1 $142 Re8 27. Qd4) 26... Qe7 {[%emt 0:00:05]} 27. Rf1 {[%emt 0:00:06] White mates.} Rd8 {[%emt 0:00:01]} 28. Qc4+ Qf7 29. Qc3 {[%emt 0:00:21]} Qd7 {[%emt 0:00:01] [#]} 30. Rd3 $3 {[%emt 0:00:10][%mdl 512]} Qe7 {[%emt 0:00:06]} (30... Kf7 31. Qg7+) 31. Rxd8+ {[%emt 0:00:01] Weighted Error Value: White=0.15 (very precise) /Black=0.68} 1-0

[Event "Susha Chess Blitz Women 2022"]
[Site "Shusha"]
[Date "2022.09.24"]
[Round "10"]
[White "Mammadova, Gulnar"]
[Black "Ozturk Orenli, Kubra"]
[Result "1/2-1/2"]
[ECO "C92"]
[WhiteElo "2382"]
[BlackElo "2319"]
[Annotator "TA"]
[PlyCount "28"]
[EventDate "2022.09.24"]
[EventType "tourn"]
[EventCountry "AZE"]
[SourceTitle "playchess.com"]
[Source "ChessBase"]
[SourceQuality "1"]
[TimeControl "180+2"]

{[%evp 16,17,31,22]} 1. e4 {[%emt 0:00:03]} e5 {[%emt 0:00:01]} 2. Nf3 {[%emt 0:00:01]} Nc6 {[%emt 0:00:01]} 3. Bb5 {[%emt 0:00:02][%cal Bf1b5,Bb5a4,Ba4b3][%mdl 32]} a6 {[%emt 0:00:01]} 4. Ba4 {[%emt 0:00:04]} Nf6 {[%emt 0:00:01]} 5. O-O {[%emt 0:00:02]} b5 {[%emt 0:00:02]} 6. Bb3 {[%emt 0:00:02]} Be7 {[%emt 0:00:02]} 7. Re1 {[%emt 0:00:07]} d6 {[%emt 0:00:03]} 8. c3 {[%emt 0:00:04]} O-O {[%emt 0:00:02]} 9. h3 {[%emt 0:00:01] [#]} {Predecessor:} Re8 $146 {C92: Closed Ruy Lopez: 9...Be6, Karpov and Flohr-Zaitsev Variations.} 10. d4 Bb7 11. Ng5 Rf8 12. Nf3 Re8 13. Ng5 Rf8 14. Nf3 Re8 {½-½ (14) Giri,A (2761)-Maghsoodloo,P (2699) Chess.com INT 2022} 1/2-1/2

[Event "Susha Chess Blitz Women 2022"]
[Site "Shusha"]
[Date "2022.09.24"]
[Round "10"]
[White "Balajayeva, Khanim"]
[Black "Fataliyeva, Ulviyya"]
[Result "1/2-1/2"]
[ECO "C15"]
[WhiteElo "2379"]
[BlackElo "2408"]
[Annotator "TA"]
[PlyCount "71"]
[EventDate "2022.09.24"]
[EventType "tourn"]
[EventCountry "AZE"]
[SourceTitle "playchess.com"]
[Source "ChessBase"]
[SourceQuality "1"]
[TimeControl "180+2"]

{[%evp 10,71,0,0,0,0,0,0,28,21,14,0,8,0,9,16,29,18,21,8,7,0,25,2,29,0,42,55,54,43,47,25,37,34,36,22,17,2,18,14,14,14,20,15,15,15,14,0,0,0,24,27,34,8,70,35,41,34,60,46,50,34,41,-5]} 1. e4 {[%emt 0:00:01]} e6 {[%emt 0:00:02]} 2. d4 {[%emt 0:00:01]} d5 {[%emt 0:00:00]} 3. Nc3 {[%emt 0:00:01]} Bb4 {[%emt 0:00:02]} 4. exd5 {[%emt 0:00:05]} exd5 {[%emt 0:00:01]} 5. a3 {[%emt 0:00:04]} Bxc3+ {[%emt 0:00:11]} 6. bxc3 {[%emt 0:00:01]} Nf6 {[%emt 0:00:26] C01: French: Exchange Variation.} 7. Bd3 {[%emt 0:00:03]} O-O {[%emt 0:00:02]} 8. Ne2 {[%emt 0:00:02] [#] Active counter play!} Ne4 $146 {[%emt 0:00:05] The position is equal.} ({Predecessor:} 8... Re8 9. O-O Ne4 10. Bf4 Bf5 11. f3 Nd6 12. Ng3 Bg6 13. Qd2 Nc6 14. Rfe1 Qd7 15. Rxe8+ Rxe8 {½-½ (30) Caruana,F (2835)-Nepomniachtchi,I (2784) chess24.com INT 2020}) 9. O-O {[%emt 0:00:06]} Bf5 {[%emt 0:00:09]} 10. f3 {[%emt 0:00:27]} Nd6 {[%emt 0:00:01]} 11. Ng3 {[%emt 0:00:02]} Bxd3 {[%emt 0:00:03]} 12. cxd3 {[%emt 0:00:03]} Qf6 {[%emt 0:00:09]} 13. Qd2 {[%emt 0:00:19]} (13. Nh5 {with more complications.} Qh4 14. g4 g6 15. Nf4) 13... Nd7 {[%emt 0:00:07]} 14. Qf4 {[%emt 0:00:02]} Qg6 {[%emt 0:00:01]} 15. Rd1 {[%emt 0:00:13]} (15. Qg4 $5 {[%cal Rg4d7]} Nb6 16. Qxg6 hxg6 17. a4 $11) 15... Rae8 {[%emt 0:00:03]} 16. h4 {[%emt 0:00:03][%cal Bh2h4,Bh4h5][%mdl 32]} h6 {[%emt 0:00:09]} 17. a4 {[%emt 0:00:09]} (17. h5 $5 {[%cal Rh5g6]} Qe6 18. a4 $11) 17... Re6 {[%emt 0:00:08]} 18. h5 {[%emt 0:00:05]} Qf6 {[%emt 0:00:02]} 19. Qxf6 $1 {[%emt 0:00:09]} Nxf6 {[%emt 0:00:01]} 20. a5 {[%emt 0:00:06]} a6 {[%emt 0:00:03]} 21. Ba3 {[%emt 0:00:04]} Rfe8 {[%emt 0:00:09]} 22. Bxd6 {[%emt 0:00:10]} Rxd6 {[%emt 0:00:01]} 23. Rdb1 {[%emt 0:00:04]} Rb8 {[%emt 0:00:13]} 24. Rb3 {[%emt 0:00:05]} b5 {[%emt 0:00:10]} 25. axb6 {[%emt 0:00:08]} Rdxb6 {[%emt 0:00:10]} 26. Rba3 {[%emt 0:00:03]} Rb1+ {[%emt 0:00:01]} 27. Rxb1 {[%emt 0:00:02]} Rxb1+ $11 {[%emt 0:00:01][%mdl 4096] Endgame KRN-KRN} 28. Kf2 {[%emt 0:00:01]} Rb2+ {[%emt 0:00:05]} 29. Kf1 {[%emt 0:00:03]} Rc2 {[%emt 0:00:01]} 30. Ne2 {[%emt 0:00:08]} Nxh5 {[%emt 0:00:05]} 31. Rxa6 {[%emt 0:00:01]} (31. g4 $5 {[%cal Rg4h5]} Nf6 32. Rxa6 $16) 31... Rd2 {[%emt 0:00:26]} (31... f5 $11) 32. Rc6 {[%emt 0:00:18] White is slightly better.} Rxd3 {[%emt 0:00:02]} 33. Rxc7 {[%emt 0:00:02]} Rd2 {[%emt 0:00:17]} 34. Rc5 {[%emt 0:00:05]} Nf6 {[%emt 0:00:01]} 35. Nf4 {[%emt 0:00:07]} Rc2 {[%emt 0:00:01]} 36. Nxd5 {[%emt 0:00:06] Weighted Error Value: White=0.09 (flawless) /Black=0.13 (very precise)} (36. Rc8+ $14 {deserves consideration.} Kh7 37. Rc5) 1/2-1/2